Workbook

Sheet Feuil1
B2: Valeur modifié par la macro | D2: Calculs à effectuer
B3: 10000 | D3: 1 | E3: =2*$B$3 -> 20000
D4: 2 | E4: =3*$B$3 -> 30000
D5: 3 | E5: =4*$B$3 -> 40000
D6: 4 | E6: =5*$B$3 -> 50000
D7: 5 | E7: =6*$B$3 -> 60000
D8: 6 | E8: =7*$B$3 -> 70000
D9: 7 | E9: =8*$B$3 -> 80000
D10: 8 | E10: =9*$B$3 -> 90000
D11: 9 | E11: =10*$B$3 -> 100000
D12: 10 | E12: =11*$B$3 -> 110000
B18: Résultats sur mon PC
B19: Sans "EnableCalculation = False" | C19: 61sec
B20: Avec "EnableCalculation = False" | C20: 30sec
B21: En supprimant la feuille | C21: 25sec

Sheet Results
B1: 1 | C1: 2 | D1: 3 | E1: 4 | F1: 5 | G1: 6 | H1: 7 | I1: 8 | J1: 9 | K1: 10
A2: 1 | B2: 2 | C2: 3 | D2: 4 | E2: 5 | F2: 6 | G2: 7 | H2: 8 | I2: 9 | J2: 10 | K2: 11
A3: 2 | B3: 4 | C3: 6 | D3: 8 | E3: 10 | F3: 12 | G3: 14 | H3: 16 | I3: 18 | J3: 20 | K3: 22
A4: 3 | B4: 6 | C4: 9 | D4: 12 | E4: 15 | F4: 18 | G4: 21 | H4: 24 | I4: 27 | J4: 30 | K4: 33
A5: 4 | B5: 8 | C5: 12 | D5: 16 | E5: 20 | F5: 24 | G5: 28 | H5: 32 | I5: 36 | J5: 40 | K5: 44
A6: 5 | B6: 10 | C6: 15 | D6: 20 | E6: 25 | F6: 30 | G6: 35 | H6: 40 | I6: 45 | J6: 50 | K6: 55
A7: 6 | B7: 12 | C7: 18 | D7: 24 | E7: 30 | F7: 36 | G7: 42 | H7: 48 | I7: 54 | J7: 60 | K7: 66
A8: 7 | B8: 14 | C8: 21 | D8: 28 | E8: 35 | F8: 42 | G8: 49 | H8: 56 | I8: 63 | J8: 70 | K8: 77
A9: 8 | B9: 16 | C9: 24 | D9: 32 | E9: 40 | F9: 48 | G9: 56 | H9: 64 | I9: 72 | J9: 80 | K9: 88
A10: 9 | B10: 18 | C10: 27 | D10: 36 | E10: 45 | F10: 54 | G10: 63 | H10: 72 | I10: 81 | J10: 90 | K10: 99
A11: 10 | B11: 20 | C11: 30 | D11: 40 | E11: 50 | F11: 60 | G11: 70 | H11: 80 | I11: 90 | J11: 100 | K11: 110
A12: 11 | B12: 22 | C12: 33 | D12: 44 | E12: 55 | F12: 66 | G12: 77 | H12: 88 | I12: 99 | J12: 110 | K12: 121
A13: 12 | B13: 24 | C13: 36 | D13: 48 | E13: 60 | F13: 72 | G13: 84 | H13: 96 | I13: 108 | J13: 120 | K13: 132
A14: 13 | B14: 26 | C14: 39 | D14: 52 | E14: 65 | F14: 78 | G14: 91 | H14: 104 | I14: 117 | J14: 130 | K14: 143
A15: 14 | B15: 28 | C15: 42 | D15: 56 | E15: 70 | F15: 84 | G15: 98 | H15: 112 | I15: 126 | J15: 140 | K15: 154
A16: 15 | B16: 30 | C16: 45 | D16: 60 | E16: 75 | F16: 90 | G16: 105 | H16: 120 | I16: 135 | J16: 150 | K16: 165
A17: 16 | B17: 32 | C17: 48 | D17: 64 | E17: 80 | F17: 96 | G17: 112 | H17: 128 | I17: 144 | J17: 160 | K17: 176
A18: 17 | B18: 34 | C18: 51 | D18: 68 | E18: 85 | F18: 102 | G18: 119 | H18: 136 | I18: 153 | J18: 170 | K18: 187
A19: 18 | B19: 36 | C19: 54 | D19: 72 | E19: 90 | F19: 108 | G19: 126 | H19: 144 | I19: 162 | J19: 180 | K19: 198
A20: 19 | B20: 38 | C20: 57 | D20: 76 | E20: 95 | F20: 114 | G20: 133 | H20: 152 | I20: 171 | J20: 190 | K20: 209
A21: 20 | B21: 40 | C21: 60 | D21: 80 | E21: 100 | F21: 120 | G21: 140 | H21: 160 | I21: 180 | J21: 200 | K21: 220
A22: 21 | B22: 42 | C22: 63 | D22: 84 | E22: 105 | F22: 126 | G22: 147 | H22: 168 | I22: 189 | J22: 210 | K22: 231
A23: 22 | B23: 44 | C23: 66 | D23: 88 | E23: 110 | F23: 132 | G23: 154 | H23: 176 | I23: 198 | J23: 220 | K23: 242
A24: 23 | B24: 46 | C24: 69 | D24: 92 | E24: 115 | F24: 138 | G24: 161 | H24: 184 | I24: 207 | J24: 230 | K24: 253
A25: 24 | B25: 48 | C25: 72 | D25: 96 | E25: 120 | F25: 144 | G25: 168 | H25: 192 | I25: 216 | J25: 240 | K25: 264
A26: 25 | B26: 50 | C26: 75 | D26: 100 | E26: 125 | F26: 150 | G26: 175 | H26: 200 | I26: 225 | J26: 250 | K26: 275
A27: 26 | B27: 52 | C27: 78 | D27: 104 | E27: 130 | F27: 156 | G27: 182 | H27: 208 | I27: 234 | J27: 260 | K27: 286
A28: 27 | B28: 54 | C28: 81 | D28: 108 | E28: 135 | F28: 162 | G28: 189 | H28: 216 | I28: 243 | J28: 270 | K28: 297
A29: 28 | B29: 56 | C29: 84 | D29: 112 | E29: 140 | F29: 168 | G29: 196 | H29: 224 | I29: 252 | J29: 280 | K29: 308
A30: 29 | B30: 58 | C30: 87 | D30: 116 | E30: 145 | F30: 174 | G30: 203 | H30: 232 | I30: 261 | J30: 290 | K30: 319
A31: 30 | B31: 60 | C31: 90 | D31: 120 | E31: 150 | F31: 180 | G31: 210 | H31: 240 | I31: 270 | J31: 300 | K31: 330
A32: 31 | B32: 62 | C32: 93 | D32: 124 | E32: 155 | F32: 186 | G32: 217 | H32: 248 | I32: 279 | J32: 310 | K32: 341
A33: 32 | B33: 64 | C33: 96 | D33: 128 | E33: 160 | F33: 192 | G33: 224 | H33: 256 | I33: 288 | J33: 320 | K33: 352
A34: 33 | B34: 66 | C34: 99 | D34: 132 | E34: 165 | F34: 198 | G34: 231 | H34: 264 | I34: 297 | J34: 330 | K34: 363
A35: 34 | B35: 68 | C35: 102 | D35: 136 | E35: 170 | F35: 204 | G35: 238 | H35: 272 | I35: 306 | J35: 340 | K35: 374
A36: 35 | B36: 70 | C36: 105 | D36: 140 | E36: 175 | F36: 210 | G36: 245 | H36: 280 | I36: 315 | J36: 350 | K36: 385
A37: 36 | B37: 72 | C37: 108 | D37: 144 | E37: 180 | F37: 216 | G37: 252 | H37: 288 | I37: 324 | J37: 360 | K37: 396
A38: 37 | B38: 74 | C38: 111 | D38: 148 | E38: 185 | F38: 222 | G38: 259 | H38: 296 | I38: 333 | J38: 370 | K38: 407
A39: 38 | B39: 76 | C39: 114 | D39: 152 | E39: 190 | F39: 228 | G39: 266 | H39: 304 | I39: 342 | J39: 380 | K39: 418
A40: 39 | B40: 78 | C40: 117 | D40: 156 | E40: 195 | F40: 234 | G40: 273 | H40: 312 | I40: 351 | J40: 390 | K40: 429
A41: 40 | B41: 80 | C41: 120 | D41: 160 | E41: 200 | F41: 240 | G41: 280 | H41: 320 | I41: 360 | J41: 400 | K41: 440
A42: 41 | B42: 82 | C42: 123 | D42: 164 | E42: 205 | F42: 246 | G42: 287 | H42: 328 | I42: 369 | J42: 410 | K42: 451
A43: 42 | B43: 84 | C43: 126 | D43: 168 | E43: 210 | F43: 252 | G43: 294 | H43: 336 | I43: 378 | J43: 420 | K43: 462
A44: 43 | B44: 86 | C44: 129 | D44: 172 | E44: 215 | F44: 258 | G44: 301 | H44: 344 | I44: 387 | J44: 430 | K44: 473
A45: 44 | B45: 88 | C45: 132 | D45: 176 | E45: 220 | F45: 264 | G45: 308 | H45: 352 | I45: 396 | J45: 440 | K45: 484
A46: 45 | B46: 90 | C46: 135 | D46: 180 | E46: 225 | F46: 270 | G46: 315 | H46: 360 | I46: 405 | J46: 450 | K46: 495
A47: 46 | B47: 92 | C47: 138 | D47: 184 | E47: 230 | F47: 276 | G47: 322 | H47: 368 | I47: 414 | J47: 460 | K47: 506
A48: 47 | B48: 94 | C48: 141 | D48: 188 | E48: 235 | F48: 282 | G48: 329 | H48: 376 | I48: 423 | J48: 470 | K48: 517
A49: 48 | B49: 96 | C49: 144 | D49: 192 | E49: 240 | F49: 288 | G49: 336 | H49: 384 | I49: 432 | J49: 480 | K49: 528
A50: 49 | B50: 98 | C50: 147 | D50: 196 | E50: 245 | F50: 294 | G50: 343 | H50: 392 | I50: 441 | J50: 490 | K50: 539
A51: 50 | B51: 100 | C51: 150 | D51: 200 | E51: 250 | F51: 300 | G51: 350 | H51: 400 | I51: 450 | J51: 500 | K51: 550
A52: 51 | B52: 102 | C52: 153 | D52: 204 | E52: 255 | F52: 306 | G52: 357 | H52: 408 | I52: 459 | J52: 510 | K52: 561
A53: 52 | B53: 104 | C53: 156 | D53: 208 | E53: 260 | F53: 312 | G53: 364 | H53: 416 | I53: 468 | J53: 520 | K53: 572
A54: 53 | B54: 106 | C54: 159 | D54: 212 | E54: 265 | F54: 318 | G54: 371 | H54: 424 | I54: 477 | J54: 530 | K54: 583
A55: 54 | B55: 108 | C55: 162 | D55: 216 | E55: 270 | F55: 324 | G55: 378 | H55: 432 | I55: 486 | J55: 540 | K55: 594
A56: 55 | B56: 110 | C56: 165 | D56: 220 | E56: 275 | F56: 330 | G56: 385 | H56: 440 | I56: 495 | J56: 550 | K56: 605
A57: 56 | B57: 112 | C57: 168 | D57: 224 | E57: 280 | F57: 336 | G57: 392 | H57: 448 | I57: 504 | J57: 560 | K57: 616
A58: 57 | B58: 114 | C58: 171 | D58: 228 | E58: 285 | F58: 342 | G58: 399 | H58: 456 | I58: 513 | J58: 570 | K58: 627
A59: 58 | B59: 116 | C59: 174 | D59: 232 | E59: 290 | F59: 348 | G59: 406 | H59: 464 | I59: 522 | J59: 580 | K59: 638
A60: 59 | B60: 118 | C60: 177 | D60: 236 | E60: 295 | F60: 354 | G60: 413 | H60: 472 | I60: 531 | J60: 590 | K60: 649
A61: 60 | B61: 120 | C61: 180 | D61: 240 | E61: 300 | F61: 360 | G61: 420 | H61: 480 | I61: 540 | J61: 600 | K61: 660
A62: 61 | B62: 122 | C62: 183 | D62: 244 | E62: 305 | F62: 366 | G62: 427 | H62: 488 | I62: 549 | J62: 610 | K62: 671
A63: 62 | B63: 124 | C63: 186 | D63: 248 | E63: 310 | F63: 372 | G63: 434 | H63: 496 | I63: 558 | J63: 620 | K63: 682
A64: 63 | B64: 126 | C64: 189 | D64: 252 | E64: 315 | F64: 378 | G64: 441 | H64: 504 | I64: 567 | J64: 630 | K64: 693
A65: 64 | B65: 128 | C65: 192 | D65: 256 | E65: 320 | F65: 384 | G65: 448 | H65: 512 | I65: 576 | J65: 640 | K65: 704
A66: 65 | B66: 130 | C66: 195 | D66: 260 | E66: 325 | F66: 390 | G66: 455 | H66: 520 | I66: 585 | J66: 650 | K66: 715
A67: 66 | B67: 132 | C67: 198 | D67: 264 | E67: 330 | F67: 396 | G67: 462 | H67: 528 | I67: 594 | J67: 660 | K67: 726
A68: 67 | B68: 134 | C68: 201 | D68: 268 | E68: 335 | F68: 402 | G68: 469 | H68: 536 | I68: 603 | J68: 670 | K68: 737
A69: 68 | B69: 136 | C69: 204 | D69: 272 | E69: 340 | F69: 408 | G69: 476 | H69: 544 | I69: 612 | J69: 680 | K69: 748
A70: 69 | B70: 138 | C70: 207 | D70: 276 | E70: 345 | F70: 414 | G70: 483 | H70: 552 | I70: 621 | J70: 690 | K70: 759
A71: 70 | B71: 140 | C71: 210 | D71: 280 | E71: 350 | F71: 420 | G71: 490 | H71: 560 | I71: 630 | J71: 700 | K71: 770
A72: 71 | B72: 142 | C72: 213 | D72: 284 | E72: 355 | F72: 426 | G72: 497 | H72: 568 | I72: 639 | J72: 710 | K72: 781
A73: 72 | B73: 144 | C73: 216 | D73: 288 | E73: 360 | F73: 432 | G73: 504 | H73: 576 | I73: 648 | J73: 720 | K73: 792
A74: 73 | B74: 146 | C74: 219 | D74: 292 | E74: 365 | F74: 438 | G74: 511 | H74: 584 | I74: 657 | J74: 730 | K74: 803
A75: 74 | B75: 148 | C75: 222 | D75: 296 | E75: 370 | F75: 444 | G75: 518 | H75: 592 | I75: 666 | J75: 740 | K75: 814
A76: 75 | B76: 150 | C76: 225 | D76: 300 | E76: 375 | F76: 450 | G76: 525 | H76: 600 | I76: 675 | J76: 750 | K76: 825
A77: 76 | B77: 152 | C77: 228 | D77: 304 | E77: 380 | F77: 456 | G77: 532 | H77: 608 | I77: 684 | J77: 760 | K77: 836
A78: 77 | B78: 154 | C78: 231 | D78: 308 | E78: 385 | F78: 462 | G78: 539 | H78: 616 | I78: 693 | J78: 770 | K78: 847
A79: 78 | B79: 156 | C79: 234 | D79: 312 | E79: 390 | F79: 468 | G79: 546 | H79: 624 | I79: 702 | J79: 780 | K79: 858
A80: 79 | B80: 158 | C80: 237 | D80: 316 | E80: 395 | F80: 474 | G80: 553 | H80: 632 | I80: 711 | J80: 790 | K80: 869
A81: 80 | B81: 160 | C81: 240 | D81: 320 | E81: 400 | F81: 480 | G81: 560 | H81: 640 | I81: 720 | J81: 800 | K81: 880
A82: 81 | B82: 162 | C82: 243 | D82: 324 | E82: 405 | F82: 486 | G82: 567 | H82: 648 | I82: 729 | J82: 810 | K82: 891
A83: 82 | B83: 164 | C83: 246 | D83: 328 | E83: 410 | F83: 492 | G83: 574 | H83: 656 | I83: 738 | J83: 820 | K83: 902
A84: 83 | B84: 166 | C84: 249 | D84: 332 | E84: 415 | F84: 498 | G84: 581 | H84: 664 | I84: 747 | J84: 830 | K84: 913
A85: 84 | B85: 168 | C85: 252 | D85: 336 | E85: 420 | F85: 504 | G85: 588 | H85: 672 | I85: 756 | J85: 840 | K85: 924
A86: 85 | B86: 170 | C86: 255 | D86: 340 | E86: 425 | F86: 510 | G86: 595 | H86: 680 | I86: 765 | J86: 850 | K86: 935
A87: 86 | B87: 172 | C87: 258 | D87: 344 | E87: 430 | F87: 516 | G87: 602 | H87: 688 | I87: 774 | J87: 860 | K87: 946
A88: 87 | B88: 174 | C88: 261 | D88: 348 | E88: 435 | F88: 522 | G88: 609 | H88: 696 | I88: 783 | J88: 870 | K88: 957
A89: 88 | B89: 176 | C89: 264 | D89: 352 | E89: 440 | F89: 528 | G89: 616 | H89: 704 | I89: 792 | J89: 880 | K89: 968
A90: 89 | B90: 178 | C90: 267 | D90: 356 | E90: 445 | F90: 534 | G90: 623 | H90: 712 | I90: 801 | J90: 890 | K90: 979
A91: 90 | B91: 180 | C91: 270 | D91: 360 | E91: 450 | F91: 540 | G91: 630 | H91: 720 | I91: 810 | J91: 900 | K91: 990
A92: 91 | B92: 182 | C92: 273 | D92: 364 | E92: 455 | F92: 546 | G92: 637 | H92: 728 | I92: 819 | J92: 910 | K92: 1001
A93: 92 | B93: 184 | C93: 276 | D93: 368 | E93: 460 | F93: 552 | G93: 644 | H93: 736 | I93: 828 | J93: 920 | K93: 1012
A94: 93 | B94: 186 | C94: 279 | D94: 372 | E94: 465 | F94: 558 | G94: 651 | H94: 744 | I94: 837 | J94: 930 | K94: 1023
A95: 94 | B95: 188 | C95: 282 | D95: 376 | E95: 470 | F95: 564 | G95: 658 | H95: 752 | I95: 846 | J95: 940 | K95: 1034
A96: 95 | B96: 190 | C96: 285 | D96: 380 | E96: 475 | F96: 570 | G96: 665 | H96: 760 | I96: 855 | J96: 950 | K96: 1045
A97: 96 | B97: 192 | C97: 288 | D97: 384 | E97: 480 | F97: 576 | G97: 672 | H97: 768 | I97: 864 | J97: 960 | K97: 1056
A98: 97 | B98: 194 | C98: 291 | D98: 388 | E98: 485 | F98: 582 | G98: 679 | H98: 776 | I98: 873 | J98: 970 | K98: 1067
A99: 98 | B99: 196 | C99: 294 | D99: 392 | E99: 490 | F99: 588 | G99: 686 | H99: 784 | I99: 882 | J99: 980 | K99: 1078
A100: 99 | B100: 198 | C100: 297 | D100: 396 | E100: 495 | F100: 594 | G100: 693 | H100: 792 | I100: 891 | J100: 990 | K100: 1089
A101: 100 | B101: 200 | C101: 300 | D101: 400 | E101: 500 | F101: 600 | G101: 700 | H101: 800 | I101: 900 | J101: 1000 | K101: 1100
B102: 202 | C102: 303 | D102: 404 | E102: 505 | F102: 606 | G102: 707 | H102: 808 | I102: 909 | J102: 1010 | K102: 1111
B103: 204 | C103: 306 | D103: 408 | E103: 510 | F103: 612 | G103: 714 | H103: 816 | I103: 918 | J103: 1020 | K103: 1122
B104: 206 | C104: 309 | D104: 412 | E104: 515 | F104: 618 | G104: 721 | H104: 824 | I104: 927 | J104: 1030 | K104: 1133
B105: 208 | C105: 312 | D105: 416 | E105: 520 | F105: 624 | G105: 728 | H105: 832 | I105: 936 | J105: 1040 | K105: 1144
B106: 210 | C106: 315 | D106: 420 | E106: 525 | F106: 630 | G106: 735 | H106: 840 | I106: 945 | J106: 1050 | K106: 1155
B107: 212 | C107: 318 | D107: 424 | E107: 530 | F107: 636 | G107: 742 | H107: 848 | I107: 954 | J107: 1060 | K107: 1166
B108: 214 | C108: 321 | D108: 428 | E108: 535 | F108: 642 | G108: 749 | H108: 856 | I108: 963 | J108: 1070 | K108: 1177
B109: 216 | C109: 324 | D109: 432 | E109: 540 | F109: 648 | G109: 756 | H109: 864 | I109: 972 | J109: 1080 | K109: 1188
B110: 218 | C110: 327 | D110: 436 | E110: 545 | F110: 654 | G110: 763 | H110: 872 | I110: 981 | J110: 1090 | K110: 1199
B111: 220 | C111: 330 | D111: 440 | E111: 550 | F111: 660 | G111: 770 | H111: 880 | I111: 990 | J111: 1100 | K111: 1210
B112: 222 | C112: 333 | D112: 444 | E112: 555 | F112: 666 | G112: 777 | H112: 888 | I112: 999 | J112: 1110 | K112: 1221
B113: 224 | C113: 336 | D113: 448 | E113: 560 | F113: 672 | G113: 784 | H113: 896 | I113: 1008 | J113: 1120 | K113: 1232
B114: 226 | C114: 339 | D114: 452 | E114: 565 | F114: 678 | G114: 791 | H114: 904 | I114: 1017 | J114: 1130 | K114: 1243
B115: 228 | C115: 342 | D115: 456 | E115: 570 | F115: 684 | G115: 798 | H115: 912 | I115: 1026 | J115: 1140 | K115: 1254
B116: 230 | C116: 345 | D116: 460 | E116: 575 | F116: 690 | G116: 805 | H116: 920 | I116: 1035 | J116: 1150 | K116: 1265
B117: 232 | C117: 348 | D117: 464 | E117: 580 | F117: 696 | G117: 812 | H117: 928 | I117: 1044 | J117: 1160 | K117: 1276
B118: 234 | C118: 351 | D118: 468 | E118: 585 | F118: 702 | G118: 819 | H118: 936 | I118: 1053 | J118: 1170 | K118: 1287
B119: 236 | C119: 354 | D119: 472 | E119: 590 | F119: 708 | G119: 826 | H119: 944 | I119: 1062 | J119: 1180 | K119: 1298
B120: 238 | C120: 357 | D120: 476 | E120: 595 | F120: 714 | G120: 833 | H120: 952 | I120: 1071 | J120: 1190 | K120: 1309
B121: 240 | C121: 360 | D121: 480 | E121: 600 | F121: 720 | G121: 840 | H121: 960 | I121: 1080 | J121: 1200 | K121: 1320
B122: 242 | C122: 363 | D122: 484 | E122: 605 | F122: 726 | G122: 847 | H122: 968 | I122: 1089 | J122: 1210 | K122: 1331
B123: 244 | C123: 366 | D123: 488 | E123: 610 | F123: 732 | G123: 854 | H123: 976 | I123: 1098 | J123: 1220 | K123: 1342
B124: 246 | C124: 369 | D124: 492 | E124: 615 | F124: 738 | G124: 861 | H124: 984 | I124: 1107 | J124: 1230 | K124: 1353
B125: 248 | C125: 372 | D125: 496 | E125: 620 | F125: 744 | G125: 868 | H125: 992 | I125: 1116 | J125: 1240 | K125: 1364
B126: 250 | C126: 375 | D126: 500 | E126: 625 | F126: 750 | G126: 875 | H126: 1000 | I126: 1125 | J126: 1250 | K126: 1375
B127: 252 | C127: 378 | D127: 504 | E127: 630 | F127: 756 | G127: 882 | H127: 1008 | I127: 1134 | J127: 1260 | K127: 1386
B128: 254 | C128: 381 | D128: 508 | E128: 635 | F128: 762 | G128: 889 | H128: 1016 | I128: 1143 | J128: 1270 | K128: 1397
B129: 256 | C129: 384 | D129: 512 | E129: 640 | F129: 768 | G129: 896 | H129: 1024 | I129: 1152 | J129: 1280 | K129: 1408
B130: 258 | C130: 387 | D130: 516 | E130: 645 | F130: 774 | G130: 903 | H130: 1032 | I130: 1161 | J130: 1290 | K130: 1419
B131: 260 | C131: 390 | D131: 520 | E131: 650 | F131: 780 | G131: 910 | H131: 1040 | I131: 1170 | J131: 1300 | K131: 1430
B132: 262 | C132: 393 | D132: 524 | E132: 655 | F132: 786 | G132: 917 | H132: 1048 | I132: 1179 | J132: 1310 | K132: 1441
B133: 264 | C133: 396 | D133: 528 | E133: 660 | F133: 792 | G133: 924 | H133: 1056 | I133: 1188 | J133: 1320 | K133: 1452
B134: 266 | C134: 399 | D134: 532 | E134: 665 | F134: 798 | G134: 931 | H134: 1064 | I134: 1197 | J134: 1330 | K134: 1463
B135: 268 | C135: 402 | D135: 536 | E135: 670 | F135: 804 | G135: 938 | H135: 1072 | I135: 1206 | J135: 1340 | K135: 1474
B136: 270 | C136: 405 | D136: 540 | E136: 675 | F136: 810 | G136: 945 | H136: 1080 | I136: 1215 | J136: 1350 | K136: 1485
B137: 272 | C137: 408 | D137: 544 | E137: 680 | F137: 816 | G137: 952 | H137: 1088 | I137: 1224 | J137: 1360 | K137: 1496
B138: 274 | C138: 411 | D138: 548 | E138: 685 | F138: 822 | G138: 959 | H138: 1096 | I138: 1233 | J138: 1370 | K138: 1507
B139: 276 | C139: 414 | D139: 552 | E139: 690 | F139: 828 | G139: 966 | H139: 1104 | I139: 1242 | J139: 1380 | K139: 1518
B140: 278 | C140: 417 | D140: 556 | E140: 695 | F140: 834 | G140: 973 | H140: 1112 | I140: 1251 | J140: 1390 | K140: 1529
B141: 280 | C141: 420 | D141: 560 | E141: 700 | F141: 840 | G141: 980 | H141: 1120 | I141: 1260 | J141: 1400 | K141: 1540
B142: 282 | C142: 423 | D142: 564 | E142: 705 | F142: 846 | G142: 987 | H142: 1128 | I142: 1269 | J142: 1410 | K142: 1551
B143: 284 | C143: 426 | D143: 568 | E143: 710 | F143: 852 | G143: 994 | H143: 1136 | I143: 1278 | J143: 1420 | K143: 1562
B144: 286 | C144: 429 | D144: 572 | E144: 715 | F144: 858 | G144: 1001 | H144: 1144 | I144: 1287 | J144: 1430 | K144: 1573
B145: 288 | C145: 432 | D145: 576 | E145: 720 | F145: 864 | G145: 1008 | H145: 1152 | I145: 1296 | J145: 1440 | K145: 1584
B146: 290 | C146: 435 | D146: 580 | E146: 725 | F146: 870 | G146: 1015 | H146: 1160 | I146: 1305 | J146: 1450 | K146: 1595
B147: 292 | C147: 438 | D147: 584 | E147: 730 | F147: 876 | G147: 1022 | H147: 1168 | I147: 1314 | J147: 1460 | K147: 1606
B148: 294 | C148: 441 | D148: 588 | E148: 735 | F148: 882 | G148: 1029 | H148: 1176 | I148: 1323 | J148: 1470 | K148: 1617
B149: 296 | C149: 444 | D149: 592 | E149: 740 | F149: 888 | G149: 1036 | H149: 1184 | I149: 1332 | J149: 1480 | K149: 1628
B150: 298 | C150: 447 | D150: 596 | E150: 745 | F150: 894 | G150: 1043 | H150: 1192 | I150: 1341 | J150: 1490 | K150: 1639
B151: 300 | C151: 450 | D151: 600 | E151: 750 | F151: 900 | G151: 1050 | H151: 1200 | I151: 1350 | J151: 1500 | K151: 1650
B152: 302 | C152: 453 | D152: 604 | E152: 755 | F152: 906 | G152: 1057 | H152: 1208 | I152: 1359 | J152: 1510 | K152: 1661
B153: 304 | C153: 456 | D153: 608 | E153: 760 | F153: 912 | G153: 1064 | H153: 1216 | I153: 1368 | J153: 1520 | K153: 1672
B154: 306 | C154: 459 | D154: 612 | E154: 765 | F154: 918 | G154: 1071 | H154: 1224 | I154: 1377 | J154: 1530 | K154: 1683
B155: 308 | C155: 462 | D155: 616 | E155: 770 | F155: 924 | G155: 1078 | H155: 1232 | I155: 1386 | J155: 1540 | K155: 1694
B156: 310 | C156: 465 | D156: 620 | E156: 775 | F156: 930 | G156: 1085 | H156: 1240 | I156: 1395 | J156: 1550 | K156: 1705
B157: 312 | C157: 468 | D157: 624 | E157: 780 | F157: 936 | G157: 1092 | H157: 1248 | I157: 1404 | J157: 1560 | K157: 1716
B158: 314 | C158: 471 | D158: 628 | E158: 785 | F158: 942 | G158: 1099 | H158: 1256 | I158: 1413 | J158: 1570 | K158: 1727
B159: 316 | C159: 474 | D159: 632 | E159: 790 | F159: 948 | G159: 1106 | H159: 1264 | I159: 1422 | J159: 1580 | K159: 1738
B160: 318 | C160: 477 | D160: 636 | E160: 795 | F160: 954 | G160: 1113 | H160: 1272 | I160: 1431 | J160: 1590 | K160: 1749
B161: 320 | C161: 480 | D161: 640 | E161: 800 | F161: 960 | G161: 1120 | H161: 1280 | I161: 1440 | J161: 1600 | K161: 1760
B162: 322 | C162: 483 | D162: 644 | E162: 805 | F162: 966 | G162: 1127 | H162: 1288 | I162: 1449 | J162: 1610 | K162: 1771
B163: 324 | C163: 486 | D163: 648 | E163: 810 | F163: 972 | G163: 1134 | H163: 1296 | I163: 1458 | J163: 1620 | K163: 1782
B164: 326 | C164: 489 | D164: 652 | E164: 815 | F164: 978 | G164: 1141 | H164: 1304 | I164: 1467 | J164: 1630 | K164: 1793
B165: 328 | C165: 492 | D165: 656 | E165: 820 | F165: 984 | G165: 1148 | H165: 1312 | I165: 1476 | J165: 1640 | K165: 1804
B166: 330 | C166: 495 | D166: 660 | E166: 825 | F166: 990 | G166: 1155 | H166: 1320 | I166: 1485 | J166: 1650 | K166: 1815
B167: 332 | C167: 498 | D167: 664 | E167: 830 | F167: 996 | G167: 1162 | H167: 1328 | I167: 1494 | J167: 1660 | K167: 1826
B168: 334 | C168: 501 | D168: 668 | E168: 835 | F168: 1002 | G168: 1169 | H168: 1336 | I168: 1503 | J168: 1670 | K168: 1837
B169: 336 | C169: 504 | D169: 672 | E169: 840 | F169: 1008 | G169: 1176 | H169: 1344 | I169: 1512 | J169: 1680 | K169: 1848
B170: 338 | C170: 507 | D170: 676 | E170: 845 | F170: 1014 | G170: 1183 | H170: 1352 | I170: 1521 | J170: 1690 | K170: 1859
B171: 340 | C171: 510 | D171: 680 | E171: 850 | F171: 1020 | G171: 1190 | H171: 1360 | I171: 1530 | J171: 1700 | K171: 1870
B172: 342 | C172: 513 | D172: 684 | E172: 855 | F172: 1026 | G172: 1197 | H172: 1368 | I172: 1539 | J172: 1710 | K172: 1881
B173: 344 | C173: 516 | D173: 688 | E173: 860 | F173: 1032 | G173: 1204 | H173: 1376 | I173: 1548 | J173: 1720 | K173: 1892
B174: 346 | C174: 519 | D174: 692 | E174: 865 | F174: 1038 | G174: 1211 | H174: 1384 | I174: 1557 | J174: 1730 | K174: 1903
B175: 348 | C175: 522 | D175: 696 | E175: 870 | F175: 1044 | G175: 1218 | H175: 1392 | I175: 1566 | J175: 1740 | K175: 1914
B176: 350 | C176: 525 | D176: 700 | E176: 875 | F176: 1050 | G176: 1225 | H176: 1400 | I176: 1575 | J176: 1750 | K176: 1925
B177: 352 | C177: 528 | D177: 704 | E177: 880 | F177: 1056 | G177: 1232 | H177: 1408 | I177: 1584 | J177: 1760 | K177: 1936
B178: 354 | C178: 531 | D178: 708 | E178: 885 | F178: 1062 | G178: 1239 | H178: 1416 | I178: 1593 | J178: 1770 | K178: 1947
B179: 356 | C179: 534 | D179: 712 | E179: 890 | F179: 1068 | G179: 1246 | H179: 1424 | I179: 1602 | J179: 1780 | K179: 1958
B180: 358 | C180: 537 | D180: 716 | E180: 895 | F180: 1074 | G180: 1253 | H180: 1432 | I180: 1611 | J180: 1790 | K180: 1969
B181: 360 | C181: 540 | D181: 720 | E181: 900 | F181: 1080 | G181: 1260 | H181: 1440 | I181: 1620 | J181: 1800 | K181: 1980
B182: 362 | C182: 543 | D182: 724 | E182: 905 | F182: 1086 | G182: 1267 | H182: 1448 | I182: 1629 | J182: 1810 | K182: 1991
B183: 364 | C183: 546 | D183: 728 | E183: 910 | F183: 1092 | G183: 1274 | H183: 1456 | I183: 1638 | J183: 1820 | K183: 2002
B184: 366 | C184: 549 | D184: 732 | E184: 915 | F184: 1098 | G184: 1281 | H184: 1464 | I184: 1647 | J184: 1830 | K184: 2013
B185: 368 | C185: 552 | D185: 736 | E185: 920 | F185: 1104 | G185: 1288 | H185: 1472 | I185: 1656 | J185: 1840 | K185: 2024
B186: 370 | C186: 555 | D186: 740 | E186: 925 | F186: 1110 | G186: 1295 | H186: 1480 | I186: 1665 | J186: 1850 | K186: 2035
B187: 372 | C187: 558 | D187: 744 | E187: 930 | F187: 1116 | G187: 1302 | H187: 1488 | I187: 1674 | J187: 1860 | K187: 2046
B188: 374 | C188: 561 | D188: 748 | E188: 935 | F188: 1122 | G188: 1309 | H188: 1496 | I188: 1683 | J188: 1870 | K188: 2057
B189: 376 | C189: 564 | D189: 752 | E189: 940 | F189: 1128 | G189: 1316 | H189: 1504 | I189: 1692 | J189: 1880 | K189: 2068
B190: 378 | C190: 567 | D190: 756 | E190: 945 | F190: 1134 | G190: 1323 | H190: 1512 | I190: 1701 | J190: 1890 | K190: 2079
B191: 380 | C191: 570 | D191: 760 | E191: 950 | F191: 1140 | G191: 1330 | H191: 1520 | I191: 1710 | J191: 1900 | K191: 2090
B192: 382 | C192: 573 | D192: 764 | E192: 955 | F192: 1146 | G192: 1337 | H192: 1528 | I192: 1719 | J192: 1910 | K192: 2101
B193: 384 | C193: 576 | D193: 768 | E193: 960 | F193: 1152 | G193: 1344 | H193: 1536 | I193: 1728 | J193: 1920 | K193: 2112
B194: 386 | C194: 579 | D194: 772 | E194: 965 | F194: 1158 | G194: 1351 | H194: 1544 | I194: 1737 | J194: 1930 | K194: 2123
B195: 388 | C195: 582 | D195: 776 | E195: 970 | F195: 1164 | G195: 1358 | H195: 1552 | I195: 1746 | J195: 1940 | K195: 2134
B196: 390 | C196: 585 | D196: 780 | E196: 975 | F196: 1170 | G196: 1365 | H196: 1560 | I196: 1755 | J196: 1950 | K196: 2145
B197: 392 | C197: 588 | D197: 784 | E197: 980 | F197: 1176 | G197: 1372 | H197: 1568 | I197: 1764 | J197: 1960 | K197: 2156
B198: 394 | C198: 591 | D198: 788 | E198: 985 | F198: 1182 | G198: 1379 | H198: 1576 | I198: 1773 | J198: 1970 | K198: 2167
B199: 396 | C199: 594 | D199: 792 | E199: 990 | F199: 1188 | G199: 1386 | H199: 1584 | I199: 1782 | J199: 1980 | K199: 2178
B200: 398 | C200: 597 | D200: 796 | E200: 995 | F200: 1194 | G200: 1393 | H200: 1592 | I200: 1791 | J200: 1990 | K200: 2189
... 4300 more rows

Sheet Sketch_select
B1: Value 1 | C1: Value 2
A2: 1 | B2: =Results!B2 -> 2 | C2: =HLOOKUP($E$3,Results!$B$1:$K$10001,A2+1) -> 7 | E2: Valeur recherchée
A3: 2 | B3: =Results!B3 -> 4 | C3: =HLOOKUP($E$3,Results!$B$1:$K$10001,A3+1) -> 14 | E3: 6
A4: 3 | B4: =Results!B4 -> 6 | C4: =HLOOKUP($E$3,Results!$B$1:$K$10001,A4+1) -> 21
A5: 4 | B5: =Results!B5 -> 8 | C5: =HLOOKUP($E$3,Results!$B$1:$K$10001,A5+1) -> 28
A6: 5 | B6: =Results!B6 -> 10 | C6: =HLOOKUP($E$3,Results!$B$1:$K$10001,A6+1) -> 35
A7: 6 | B7: =Results!B7 -> 12 | C7: =HLOOKUP($E$3,Results!$B$1:$K$10001,A7+1) -> 42
A8: 7 | B8: =Results!B8 -> 14 | C8: =HLOOKUP($E$3,Results!$B$1:$K$10001,A8+1) -> 49
A9: 8 | B9: =Results!B9 -> 16 | C9: =HLOOKUP($E$3,Results!$B$1:$K$10001,A9+1) -> 56
A10: 9 | B10: =Results!B10 -> 18 | C10: =HLOOKUP($E$3,Results!$B$1:$K$10001,A10+1) -> 63
A11: 10 | B11: =Results!B11 -> 20 | C11: =HLOOKUP($E$3,Results!$B$1:$K$10001,A11+1) -> 70
A12: 11 | B12: =Results!B12 -> 22 | C12: =HLOOKUP($E$3,Results!$B$1:$K$10001,A12+1) -> 77
A13: 12 | B13: =Results!B13 -> 24 | C13: =HLOOKUP($E$3,Results!$B$1:$K$10001,A13+1) -> 84
A14: 13 | B14: =Results!B14 -> 26 | C14: =HLOOKUP($E$3,Results!$B$1:$K$10001,A14+1) -> 91
A15: 14 | B15: =Results!B15 -> 28 | C15: =HLOOKUP($E$3,Results!$B$1:$K$10001,A15+1) -> 98
A16: 15 | B16: =Results!B16 -> 30 | C16: =HLOOKUP($E$3,Results!$B$1:$K$10001,A16+1) -> 105
A17: 16 | B17: =Results!B17 -> 32 | C17: =HLOOKUP($E$3,Results!$B$1:$K$10001,A17+1) -> 112
A18: 17 | B18: =Results!B18 -> 34 | C18: =HLOOKUP($E$3,Results!$B$1:$K$10001,A18+1) -> 119
A19: 18 | B19: =Results!B19 -> 36 | C19: =HLOOKUP($E$3,Results!$B$1:$K$10001,A19+1) -> 126
A20: 19 | B20: =Results!B20 -> 38 | C20: =HLOOKUP($E$3,Results!$B$1:$K$10001,A20+1) -> 133
A21: 20 | B21: =Results!B21 -> 40 | C21: =HLOOKUP($E$3,Results!$B$1:$K$10001,A21+1) -> 140
A22: 21 | B22: =Results!B22 -> 42 | C22: =HLOOKUP($E$3,Results!$B$1:$K$10001,A22+1) -> 147
A23: 22 | B23: =Results!B23 -> 44 | C23: =HLOOKUP($E$3,Results!$B$1:$K$10001,A23+1) -> 154
A24: 23 | B24: =Results!B24 -> 46 | C24: =HLOOKUP($E$3,Results!$B$1:$K$10001,A24+1) -> 161
A25: 24 | B25: =Results!B25 -> 48 | C25: =HLOOKUP($E$3,Results!$B$1:$K$10001,A25+1) -> 168
A26: 25 | B26: =Results!B26 -> 50 | C26: =HLOOKUP($E$3,Results!$B$1:$K$10001,A26+1) -> 175
A27: 26 | B27: =Results!B27 -> 52 | C27: =HLOOKUP($E$3,Results!$B$1:$K$10001,A27+1) -> 182
A28: 27 | B28: =Results!B28 -> 54 | C28: =HLOOKUP($E$3,Results!$B$1:$K$10001,A28+1) -> 189
A29: 28 | B29: =Results!B29 -> 56 | C29: =HLOOKUP($E$3,Results!$B$1:$K$10001,A29+1) -> 196
A30: 29 | B30: =Results!B30 -> 58 | C30: =HLOOKUP($E$3,Results!$B$1:$K$10001,A30+1) -> 203
A31: 30 | B31: =Results!B31 -> 60 | C31: =HLOOKUP($E$3,Results!$B$1:$K$10001,A31+1) -> 210
A32: 31 | B32: =Results!B32 -> 62 | C32: =HLOOKUP($E$3,Results!$B$1:$K$10001,A32+1) -> 217
A33: 32 | B33: =Results!B33 -> 64 | C33: =HLOOKUP($E$3,Results!$B$1:$K$10001,A33+1) -> 224
A34: 33 | B34: =Results!B34 -> 66 | C34: =HLOOKUP($E$3,Results!$B$1:$K$10001,A34+1) -> 231
A35: 34 | B35: =Results!B35 -> 68 | C35: =HLOOKUP($E$3,Results!$B$1:$K$10001,A35+1) -> 238
A36: 35 | B36: =Results!B36 -> 70 | C36: =HLOOKUP($E$3,Results!$B$1:$K$10001,A36+1) -> 245
A37: 36 | B37: =Results!B37 -> 72 | C37: =HLOOKUP($E$3,Results!$B$1:$K$10001,A37+1) -> 252
A38: 37 | B38: =Results!B38 -> 74 | C38: =HLOOKUP($E$3,Results!$B$1:$K$10001,A38+1) -> 259
A39: 38 | B39: =Results!B39 -> 76 | C39: =HLOOKUP($E$3,Results!$B$1:$K$10001,A39+1) -> 266
A40: 39 | B40: =Results!B40 -> 78 | C40: =HLOOKUP($E$3,Results!$B$1:$K$10001,A40+1) -> 273
A41: 40 | B41: =Results!B41 -> 80 | C41: =HLOOKUP($E$3,Results!$B$1:$K$10001,A41+1) -> 280
A42: 41 | B42: =Results!B42 -> 82 | C42: =HLOOKUP($E$3,Results!$B$1:$K$10001,A42+1) -> 287
A43: 42 | B43: =Results!B43 -> 84 | C43: =HLOOKUP($E$3,Results!$B$1:$K$10001,A43+1) -> 294
A44: 43 | B44: =Results!B44 -> 86 | C44: =HLOOKUP($E$3,Results!$B$1:$K$10001,A44+1) -> 301
A45: 44 | B45: =Results!B45 -> 88 | C45: =HLOOKUP($E$3,Results!$B$1:$K$10001,A45+1) -> 308
A46: 45 | B46: =Results!B46 -> 90 | C46: =HLOOKUP($E$3,Results!$B$1:$K$10001,A46+1) -> 315
A47: 46 | B47: =Results!B47 -> 92 | C47: =HLOOKUP($E$3,Results!$B$1:$K$10001,A47+1) -> 322
A48: 47 | B48: =Results!B48 -> 94 | C48: =HLOOKUP($E$3,Results!$B$1:$K$10001,A48+1) -> 329
A49: 48 | B49: =Results!B49 -> 96 | C49: =HLOOKUP($E$3,Results!$B$1:$K$10001,A49+1) -> 336
A50: 49 | B50: =Results!B50 -> 98 | C50: =HLOOKUP($E$3,Results!$B$1:$K$10001,A50+1) -> 343
A51: 50 | B51: =Results!B51 -> 100 | C51: =HLOOKUP($E$3,Results!$B$1:$K$10001,A51+1) -> 350
A52: 51 | B52: =Results!B52 -> 102 | C52: =HLOOKUP($E$3,Results!$B$1:$K$10001,A52+1) -> 357
A53: 52 | B53: =Results!B53 -> 104 | C53: =HLOOKUP($E$3,Results!$B$1:$K$10001,A53+1) -> 364
A54: 53 | B54: =Results!B54 -> 106 | C54: =HLOOKUP($E$3,Results!$B$1:$K$10001,A54+1) -> 371
A55: 54 | B55: =Results!B55 -> 108 | C55: =HLOOKUP($E$3,Results!$B$1:$K$10001,A55+1) -> 378
A56: 55 | B56: =Results!B56 -> 110 | C56: =HLOOKUP($E$3,Results!$B$1:$K$10001,A56+1) -> 385
A57: 56 | B57: =Results!B57 -> 112 | C57: =HLOOKUP($E$3,Results!$B$1:$K$10001,A57+1) -> 392
A58: 57 | B58: =Results!B58 -> 114 | C58: =HLOOKUP($E$3,Results!$B$1:$K$10001,A58+1) -> 399
A59: 58 | B59: =Results!B59 -> 116 | C59: =HLOOKUP($E$3,Results!$B$1:$K$10001,A59+1) -> 406
A60: 59 | B60: =Results!B60 -> 118 | C60: =HLOOKUP($E$3,Results!$B$1:$K$10001,A60+1) -> 413
A61: 60 | B61: =Results!B61 -> 120 | C61: =HLOOKUP($E$3,Results!$B$1:$K$10001,A61+1) -> 420
A62: 61 | B62: =Results!B62 -> 122 | C62: =HLOOKUP($E$3,Results!$B$1:$K$10001,A62+1) -> 427
A63: 62 | B63: =Results!B63 -> 124 | C63: =HLOOKUP($E$3,Results!$B$1:$K$10001,A63+1) -> 434
A64: 63 | B64: =Results!B64 -> 126 | C64: =HLOOKUP($E$3,Results!$B$1:$K$10001,A64+1) -> 441
A65: 64 | B65: =Results!B65 -> 128 | C65: =HLOOKUP($E$3,Results!$B$1:$K$10001,A65+1) -> 448
A66: 65 | B66: =Results!B66 -> 130 | C66: =HLOOKUP($E$3,Results!$B$1:$K$10001,A66+1) -> 455
A67: 66 | B67: =Results!B67 -> 132 | C67: =HLOOKUP($E$3,Results!$B$1:$K$10001,A67+1) -> 462
A68: 67 | B68: =Results!B68 -> 134 | C68: =HLOOKUP($E$3,Results!$B$1:$K$10001,A68+1) -> 469
A69: 68 | B69: =Results!B69 -> 136 | C69: =HLOOKUP($E$3,Results!$B$1:$K$10001,A69+1) -> 476
A70: 69 | B70: =Results!B70 -> 138 | C70: =HLOOKUP($E$3,Results!$B$1:$K$10001,A70+1) -> 483
A71: 70 | B71: =Results!B71 -> 140 | C71: =HLOOKUP($E$3,Results!$B$1:$K$10001,A71+1) -> 490
A72: 71 | B72: =Results!B72 -> 142 | C72: =HLOOKUP($E$3,Results!$B$1:$K$10001,A72+1) -> 497
A73: 72 | B73: =Results!B73 -> 144 | C73: =HLOOKUP($E$3,Results!$B$1:$K$10001,A73+1) -> 504
A74: 73 | B74: =Results!B74 -> 146 | C74: =HLOOKUP($E$3,Results!$B$1:$K$10001,A74+1) -> 511
A75: 74 | B75: =Results!B75 -> 148 | C75: =HLOOKUP($E$3,Results!$B$1:$K$10001,A75+1) -> 518
A76: 75 | B76: =Results!B76 -> 150 | C76: =HLOOKUP($E$3,Results!$B$1:$K$10001,A76+1) -> 525
A77: 76 | B77: =Results!B77 -> 152 | C77: =HLOOKUP($E$3,Results!$B$1:$K$10001,A77+1) -> 532
A78: 77 | B78: =Results!B78 -> 154 | C78: =HLOOKUP($E$3,Results!$B$1:$K$10001,A78+1) -> 539
A79: 78 | B79: =Results!B79 -> 156 | C79: =HLOOKUP($E$3,Results!$B$1:$K$10001,A79+1) -> 546
A80: 79 | B80: =Results!B80 -> 158 | C80: =HLOOKUP($E$3,Results!$B$1:$K$10001,A80+1) -> 553
A81: 80 | B81: =Results!B81 -> 160 | C81: =HLOOKUP($E$3,Results!$B$1:$K$10001,A81+1) -> 560
A82: 81 | B82: =Results!B82 -> 162 | C82: =HLOOKUP($E$3,Results!$B$1:$K$10001,A82+1) -> 567
A83: 82 | B83: =Results!B83 -> 164 | C83: =HLOOKUP($E$3,Results!$B$1:$K$10001,A83+1) -> 574
A84: 83 | B84: =Results!B84 -> 166 | C84: =HLOOKUP($E$3,Results!$B$1:$K$10001,A84+1) -> 581
A85: 84 | B85: =Results!B85 -> 168 | C85: =HLOOKUP($E$3,Results!$B$1:$K$10001,A85+1) -> 588
A86: 85 | B86: =Results!B86 -> 170 | C86: =HLOOKUP($E$3,Results!$B$1:$K$10001,A86+1) -> 595
A87: 86 | B87: =Results!B87 -> 172 | C87: =HLOOKUP($E$3,Results!$B$1:$K$10001,A87+1) -> 602
A88: 87 | B88: =Results!B88 -> 174 | C88: =HLOOKUP($E$3,Results!$B$1:$K$10001,A88+1) -> 609
A89: 88 | B89: =Results!B89 -> 176 | C89: =HLOOKUP($E$3,Results!$B$1:$K$10001,A89+1) -> 616
A90: 89 | B90: =Results!B90 -> 178 | C90: =HLOOKUP($E$3,Results!$B$1:$K$10001,A90+1) -> 623
A91: 90 | B91: =Results!B91 -> 180 | C91: =HLOOKUP($E$3,Results!$B$1:$K$10001,A91+1) -> 630
A92: 91 | B92: =Results!B92 -> 182 | C92: =HLOOKUP($E$3,Results!$B$1:$K$10001,A92+1) -> 637
A93: 92 | B93: =Results!B93 -> 184 | C93: =HLOOKUP($E$3,Results!$B$1:$K$10001,A93+1) -> 644
A94: 93 | B94: =Results!B94 -> 186 | C94: =HLOOKUP($E$3,Results!$B$1:$K$10001,A94+1) -> 651
A95: 94 | B95: =Results!B95 -> 188 | C95: =HLOOKUP($E$3,Results!$B$1:$K$10001,A95+1) -> 658
A96: 95 | B96: =Results!B96 -> 190 | C96: =HLOOKUP($E$3,Results!$B$1:$K$10001,A96+1) -> 665
A97: 96 | B97: =Results!B97 -> 192 | C97: =HLOOKUP($E$3,Results!$B$1:$K$10001,A97+1) -> 672
A98: 97 | B98: =Results!B98 -> 194 | C98: =HLOOKUP($E$3,Results!$B$1:$K$10001,A98+1) -> 679
A99: 98 | B99: =Results!B99 -> 196 | C99: =HLOOKUP($E$3,Results!$B$1:$K$10001,A99+1) -> 686
A100: 99 | B100: =Results!B100 -> 198 | C100: =HLOOKUP($E$3,Results!$B$1:$K$10001,A100+1) -> 693
A101: 100 | B101: =Results!B101 -> 200 | C101: =HLOOKUP($E$3,Results!$B$1:$K$10001,A101+1) -> 700
